{"text_format":"1","workbook":"xlsx","n_sheets":4,"sheets":["Runs by person","Run Results","Points Table","Summary"],"not_rendered":{"charts":0,"images":0,"macros":1,"external_links":0,"defined_names":2,"comments":0,"pivot_tables":2},"unopened":[],"bounds":{"document_bytes":16777216,"sheet_cells":100000,"rows_first":2000,"rows_last":500,"rows_between":2000,"halvings":0,"cell_chars":16384,"cell_head_chars":4096},"cells_cut":0,"cells_raw":0,"read":"whole","date_system":"1900"}

{"sheet":"Runs by person","index":0,"n_rows":59,"n_cols":3,"rows_kept":59,"cut":false,"hidden":false,"merged":[]}
["2016 Juniors Results"]
["Double click on the number in column C adjacent to your name to reveal the run details."]
["Row Labels","First Name","Runs Completed"]
["Alcock","Reg",1]
["Alcock","Shirley",1]
["Barrier","Michael",1]
["Bartulovich","Luka",4]
["Carey","Lachlan",3]
["Chadwick-Bray","Gracy",7]
["Cooper","Jardine",1]
["Fairley","Leo",4]
["Fairley","Ned",1]
["Ferguson","Matthew",6]
["Godier","Isabella",2]
["Godier","Mikayla",2]
["Horne","Nathaniel",8]
["James","Elena",14]
["Jenkinson","Alli",1]
["Kerby","Jayne",2]
["Kerby","William",2]
["Kipping","Hannah",1]
["Knowles","Hayley",1]
["Knowles","Meghan",1]
["Latouf","Connor",3]
["Latouf","Reilly",3]
["Leyton","Clifford",1]
["Machin","Dylan",12]
["Machin","Francie",1]
["Machin","Jake",12]
["Maguire","Matthew",1]
["Marano","Drew",1]
["Marchioni","Declan",2]
["Marquez","Bella",5]
["Marquez","Josh",7]
["McGhie","Jett",1]
["McGhie","Sam",1]
["Nethery","Tesfa",1]
["Nethery","Yideg",2]
["Norris","Bella",4]
["Norris","Hannah",1]
["Nugent","Lauren",1]
["Penny","Jorja",1]
["Punshon","Declan",3]
["Punshon","Thaddaeus",1]
["Raciti","Ella",1]
["Sampson","Ethan",1]
["Schick","Caitlin",1]
["Schick","Emma",1]
["Schick","Max",2]
["Smithers","Riley",2]
["Stafford","Taylor",4]
["Stallan","Kye",1]
["Stallan","Tyla",1]
["Staunton","Ethan",3]
["Staunton","Molly",3]
["Stokes","Eloise",1]
["Talbot","Dylan",1]
["Taylor","Brooke",6]
["Vacs","Zach",1]

{"sheet":"Run Results","index":1,"n_rows":158,"n_cols":12,"rows_kept":158,"cut":false,"hidden":false,"merged":[]}
["2016 Junior Results - Junior Runs"]
["Date","Run","Distance","Place","Time","Member/Non Member#","First Name","Surname","Surname First Name","Gender","Age group","PointS"]
["2016-03-12","Strand Run",2,1,"7.02","J_001","William","Kerby",{"$f":"H3&\"-\"&G3","v":"Kerby-William"},"M","N/A",5]
["2016-03-12","Strand Run",2,2,"7.09",515150,"Connor","Latouf",{"$f":"H4&\"-\"&G4","v":"Latouf-Connor"},"M","3 - 14 years to 15 years",5]
["2016-03-12","Strand Run",2,3,"7.32",97077,"Nathaniel","Horne","Horne-Nathaniel","M","3 - 14 years to 15 years",4]
["2016-03-12","Strand Run",2,4,"7.39",402509,"Elena","James","James-Elena","F","3 - 14 years to 15 years",5]
["2016-03-12","Strand Run",2,5,"7.57",402848,"Josh","Marquez","Marquez-Josh","M","2 - 12 years to 13 years",5]
["2016-03-12","Strand Run",2,6,"8.10","J_002","Jayne","Kerby","Kerby-Jayne","F","N/A",5]
["2016-03-12","Strand Run",2,7,"8.11",515441,"Brooke","Taylor","Taylor-Brooke","F","2 - 12 years to 13 years",5]
["2016-03-12","Strand Run",2,8,"8.23",197247,"Bella","Marquez","Marquez-Bella","F","1 - to 11 years",5]
["2016-03-12","Strand Run",2,9,"8.37",402859,"Hannah","Kipping","Kipping-Hannah","F","3 - 14 years to 15 years",4]
["2016-03-12","Strand Run",2,10,"8.37",515981,"Clifford","Leyton","Leyton-Clifford","M","2 - 12 years to 13 years",4]
["2016-03-12","Strand Run",2,11,"10.23","J_003","Zach","Vacs","Vacs-Zach","M","N/A",4]
["2016-03-12","Strand Run",2,12,"11.01",402785,"Taylor","Stafford","Stafford-Taylor","F","2 - 12 years to 13 years",4]
["2016-03-12","Strand Run",2,13,"11.22","J_006","Reilly","Latouf","Latouf-Reilly","M","1 - to 11 years",5]
["2016-04-02","Fairfield Waters Run",2,1,"7.13",515150,"Connor","Latouf","Latouf-Connor","M","3 - 14 years to 15 years",5]
["2016-04-02","Fairfield Waters Run",2,2,"7.23",97077,"Nathaniel","Horne","Horne-Nathaniel","M","3 - 14 years to 15 years",4]
["2016-04-02","Fairfield Waters Run",2,3,"7.31",402520,"Eloise","Stokes","Stokes-Eloise","F","4 - 16 years to 17 years",5]
["2016-04-02","Fairfield Waters Run",2,4,"7.32",402509,"Elena","James","James-Elena","F","3 - 14 years to 15 years",5]
["2016-04-02","Fairfield Waters Run",2,5,"7.49",402848,"Josh","Marquez","Marquez-Josh","M","2 - 12 years to 13 years",5]
["2016-04-02","Fairfield Waters Run",2,6,"8.01",560071,"Matthew","Ferguson","Ferguson-Matthew","M","2 - 12 years to 13 years",4]
["2016-04-02","Fairfield Waters Run",2,7,"8.21",197247,"Bella","Marquez","Marquez-Bella","F","1 - to 11 years",5]
["2016-04-02","Fairfield Waters Run",2,8,"8.26",515441,"Brooke","Taylor","Taylor-Brooke","F","2 - 12 years to 13 years",5]
["2016-04-02","Fairfield Waters Run",2,9,"9.03",612424,"Jake","Machin","Machin-Jake","M","2 - 12 years to 13 years",3]
["2016-04-02","Fairfield Waters Run",2,10,"9.10","J_006","Reilly","Latouf","Latouf-Reilly","M","1 - to 11 years",5]
["2016-04-02","Fairfield Waters Run",2,11,"10.01","J_011","Max","Schick","Schick-Max","M","1 - to 11 years",4]
["2016-04-02","Fairfield Waters Run",2,12,"10.35",612421,"Dylan","Machin","Machin-Dylan","M","1 - to 11 years",3]
["2016-04-02","Fairfield Waters Run",2,13,"10.55","J_008","Thaddaeus","Punshon","Punshon-Thaddaeus","M","4 - 16 years to 17 years",5]
["2016-04-02","Fairfield Waters Run",2,14,"11.53",402785,"Taylor","Stafford","Stafford-Taylor","F","2 - 12 years to 13 years",4]
["2016-04-02","Fairfield Waters Run",2,15,"12.31","J_010","Emma","Schick","Schick-Emma","F","1 - to 11 years",4]
["2016-04-02","Fairfield Waters Run",2,16,"12.58","J_007","Declan","Punshon","Punshon-Declan","M","1 - to 11 years",2]
["2016-04-02","Fairfield Waters Run",2,17,"13.19","J_009","Caitlin","Schick","Schick-Caitlin","F","3 - 14 years to 15 years",4]
["2016-04-16","River Lower Loop",3,1,"11.38",515150,"Connor","Latouf","Latouf-Connor","M","3 - 14 years to 15 years",5]
["2016-04-16","River Lower Loop",3,2,"12.06",402509,"Elena","James","James-Elena","F","3 - 14 years to 15 years",5]
["2016-04-16","River Lower Loop",3,3,"12.44",573501,"Leo","Fairley","Fairley-Leo","M","2 - 12 years to 13 years",5]
["2016-04-16","River Lower Loop",3,4,"12.58",532459,"Luka","Bartulovich","Bartulovich-Luka","M","2 - 12 years to 13 years",4]
["2016-04-16","River Lower Loop",3,5,"12.59",560071,"Matthew","Ferguson","Ferguson-Matthew","M","2 - 12 years to 13 years",3]
["2016-04-16","River Lower Loop",3,6,"13.14",515441,"Brooke","Taylor","Taylor-Brooke","F","2 - 12 years to 13 years",5]
["2016-04-16","River Lower Loop",3,7,"14.05",402839,"Lachlan","Carey","Carey-Lachlan","M","3 - 14 years to 15 years",4]
["2016-04-16","River Lower Loop",3,8,"15.10",97077,"Nathaniel","Horne","Horne-Nathaniel","M","3 - 14 years to 15 years",3]
["2016-04-16","River Lower Loop",3,9,"16.26","J_006","Reilly","Latouf","Latouf-Reilly","M","1 - to 11 years",5]
["2016-04-16","River Lower Loop",3,10,"18.10",565757,"Gracy","Chadwick-Bray","Chadwick-Bray-Gracy","F","3 - 14 years to 15 years",4]
["2016-04-16","River Lower Loop",3,11,"19.21","J_007","Declan","Punshon","Punshon-Declan","M","1 - to 11 years",4]
["2016-04-16","River Lower Loop",3,12,"20.19","J_022","Bella","Norris","Norris-Bella","F","1 - to 11 years",5]
["2016-04-16","River Lower Loop",3,13,"21.30",402785,"Taylor","Stafford","Stafford-Taylor","F","2 - 12 years to 13 years",4]
["2016-04-23","Town Common Loop",3,1,"12.09",323017,"Declan","Marchioni","Marchioni-Declan","M","3 - 14 years to 15 years",5]
["2016-04-23","Town Common Loop",3,2,"12.18",402509,"Elena","James","James-Elena","F","3 - 14 years to 15 years",5]
["2016-04-23","Town Common Loop",3,3,"12.34",97077,"Nathaniel","Horne","Horne-Nathaniel","M","3 - 14 years to 15 years",4]
["2016-04-23","Town Common Loop",3,4,"12.46","J_030","Ethan","Staunton","Staunton-Ethan","M","1 - to 11 years",5]
["2016-04-23","Town Common Loop",3,5,"12.57",573501,"Leo","Fairley","Fairley-Leo","M","2 - 12 years to 13 years",5]
["2016-04-23","Town Common Loop",3,6,"13.21","J_019","Tyla","Stallan","Stallan-Tyla","F","4 - 16 years to 17 years",5]
["2016-04-23","Town Common Loop",3,7,"13.34",515441,"Brooke","Taylor","Taylor-Brooke","F","2 - 12 years to 13 years",5]
["2016-04-23","Town Common Loop",3,8,"14.02",402839,"Lachlan","Carey","Carey-Lachlan","M","3 - 14 years to 15 years",3]
["2016-04-23","Town Common Loop",3,9,"14.04","J_029","Molly","Staunton","Staunton-Molly","F","1 - to 11 years",5]
["2016-04-23","Town Common Loop",3,10,"14.48",612424,"Jake","Machin","Machin-Jake","M","2 - 12 years to 13 years",4]
["2016-04-23","Town Common Loop",3,11,"14.49","J_024","Kye","Stallan","Stallan-Kye","M","1 - to 11 years",4]
["2016-04-23","Town Common Loop",3,12,"14.51","J_026","Jorja","Penny","Penny-Jorja","F","1 - to 11 years",4]
["2016-04-23","Town Common Loop",3,13,"17.10","J_028","Jardine","Cooper","Cooper-Jardine","M","2 - 12 years to 13 years",3]
["2016-04-23","Town Common Loop",3,14,"17.27",612421,"Dylan","Machin","Machin-Dylan","M","1 - to 11 years",3]
["2016-04-23","Town Common Loop",3,15,"17.47",402785,"Taylor","Stafford","Stafford-Taylor","F","2 - 12 years to 13 years",4]
["2016-04-23","Town Common Loop",3,16,"18.17","J_007","Declan","Punshon","Punshon-Declan","M","1 - to 11 years",2]
["2016-04-23","Town Common Loop",3,17,"20.24",565757,"Gracy","Chadwick-Bray","Chadwick-Bray-Gracy","F","3 - 14 years to 15 years",4]
["2016-04-23","Town Common Loop",3,18,"25.06","J_025","Ella","Raciti","Raciti-Ella","F","1 - to 11 years",3]
["2016-04-30","Alligator Creek Circuit",3,1,"10.06",511492,"Riley","Smithers","Smithers-Riley","M","3 - 14 years to 15 years",5]
["2016-04-30","Alligator Creek Circuit",3,2,"10.14",97077,"Nathaniel","Horne","Horne-Nathaniel","M","3 - 14 years to 15 years",4]
["2016-04-30","Alligator Creek Circuit",3,3,"10.21",402509,"Elena","James","James-Elena","F","3 - 14 years to 15 years",5]
["2016-04-30","Alligator Creek Circuit",3,4,"10.28",532459,"Luka","Bartulovich","Bartulovich-Luka","M","2 - 12 years to 13 years",5]
["2016-04-30","Alligator Creek Circuit",3,5,"10.33",573501,"Leo","Fairley",{"$f":"H68&\"-\"&G68","v":"Fairley-Leo"},"M","2 - 12 years to 13 years",4]
["2016-04-30","Alligator Creek Circuit",3,6,"10.35",402848,"Josh","Marquez","Marquez-Josh","M","2 - 12 years to 13 years",3]
["2016-04-30","Alligator Creek Circuit",3,7,"11.19",560071,"Matthew","Ferguson","Ferguson-Matthew","M","2 - 12 years to 13 years",2]
["2016-04-30","Alligator Creek Circuit",3,8,"11.21",612424,"Jake","Machin","Machin-Jake","M","2 - 12 years to 13 years",1]
["2016-04-30","Alligator Creek Circuit",3,9,"11.41",515441,"Brooke","Taylor","Taylor-Brooke","F","2 - 12 years to 13 years",5]
["2016-04-30","Alligator Creek Circuit",3,10,"12.05",402839,"Lachlan","Carey","Carey-Lachlan","M","3 - 14 years to 15 years",3]
["2016-04-30","Alligator Creek Circuit",3,11,"12.51","J_032","Drew","Marano","Marano-Drew","M","1 - to 11 years",5]
["2016-04-30","Alligator Creek Circuit",3,12,"14.36",612421,"Dylan","Machin","Machin-Dylan","M","1 - to 11 years",4]
["2016-04-30","Alligator Creek Circuit",3,13,"14.58","J_031","Alli","Jenkinson","Jenkinson-Alli","F","1 - to 11 years",5]
["2016-05-21","Townsville Ten Miler (PC)",2.9,1,"11.34",97077,"Nathaniel","Horne","Horne-Nathaniel","M","3 - 14 years to 15 years",5]
["2016-05-21","Townsville Ten Miler (PC)",2.9,2,"11.55",402509,"Elena","James","James-Elena","F","3 - 14 years to 15 years",5]
["2016-05-21","Townsville Ten Miler (PC)",2.9,3,"12.46",560071,"Matthew","Ferguson","Ferguson-Matthew","M","2 - 12 years to 13 years",5]
["2016-05-21","Townsville Ten Miler (PC)",2.9,4,"13.13",515441,"Brooke","Taylor","Taylor-Brooke","F","2 - 12 years to 13 years",5]
["2016-05-21","Townsville Ten Miler (PC)",2.9,5,"15.24","J_033","Ned","Fairley","Fairley-Ned","M","1 - to 11 years",5]
["2016-05-28","West Water Tanks",3,1,"13.23",97077,"Nathaniel","Horne","Horne-Nathaniel","M","3 - 14 years to 15 years",5]
["2016-05-28","West Water Tanks",3,2,"13.41",402509,"Elena","James","James-Elena","F","3 - 14 years to 15 years",5]
["2016-05-28","West Water Tanks",3,3,"13.42",532459,"Luka","Bartulovich","Bartulovich-Luka","M","2 - 12 years to 13 years",5]
["2016-05-28","West Water Tanks",3,4,"13.45",560071,"Matthew","Ferguson","Ferguson-Matthew","M","2 - 12 years to 13 years",4]
["2016-05-28","West Water Tanks",3,5,"17.33",565757,"Gracy","Chadwick-Bray","Chadwick-Bray-Gracy","F","3 - 14 years to 15 years",4]
["2016-06-04","Ross River Dam 10km Time Trial (PC)",3,1,"13.11",612424,"Jake","Machin","Machin-Jake","M","2 - 12 years to 13 years",5]
["2016-06-04","Ross River Dam 10km Time Trial (PC)",3,2,"15.30",565757,"Gracy","Chadwick-Bray","Chadwick-Bray-Gracy","F","3 - 14 years to 15 years",5]
["2016-06-04","Ross River Dam 10km Time Trial (PC)",3,3,"19.03",612421,"Dylan","Machin","Machin-Dylan","M","1 - to 11 years",5]
["2016-06-11","Running Works Cross Country Series Race 1",3,1,"12.56","J_001","William","Kerby","Kerby-William","M","N/A",5]
["2016-06-11","Running Works Cross Country Series Race 1",3,2,"13.46",402509,"Elena","James","James-Elena","F","3 - 14 years to 15 years",5]
["2016-06-11","Running Works Cross Country Series Race 1",3,3,"14.28",612424,"Jake","Machin","Machin-Jake","M","2 - 12 years to 13 years",5]
["2016-06-11","Running Works Cross Country Series Race 1",3,4,"14.38","J_002","Jayne","Kerby","Kerby-Jayne","F","N/A",5]
["2016-06-11","Running Works Cross Country Series Race 1",3,5,"20.10",612421,"Dylan","Machin","Machin-Dylan","M","1 - to 11 years",5]
["2016-06-11","Running Works Cross Country Series Race 1",3,6,"20.50","J_022","Bella","Norris","Norris-Bella","F","1 - to 11 years",5]
["2016-06-11","Running Works Cross Country Series Race 1",3,7,"21.32","J_036","Hannah","Norris","Norris-Hannah","F","1 - to 11 years",4]
["2016-07-08","3 Day Race-Day 1",3,1,"11.06","J_037","Yideg","Nethery","Nethery-Yideg","M","3 - 14 years to 15 years",5]
["2016-07-08","3 Day Race-Day 1",3,2,"11.11",528022,"Matthew","Maguire","Maguire-Matthew","M","4 - 16 years to 17 years",5]
["2016-07-08","3 Day Race-Day 1",3,3,"12.21",402509,"Elena","James","James-Elena","F","3 - 14 years to 15 years",5]
["2016-07-08","3 Day Race-Day 1",3,4,"12.23",402386,"Lauren","Nugent","Nugent-Lauren","F","2 - 12 years to 13 years",5]
["2016-07-08","3 Day Race-Day 1",3,5,"13.37",612424,"Jake","Machin","Machin-Jake","M","2 - 12 years to 13 years",5]
["2016-07-08","3 Day Race-Day 1",3,6,"16.59","J_038","Mikayla","Godier","Godier-Mikayla","F","2 - 12 years to 13 years",4]
["2016-07-08","3 Day Race-Day 1",3,7,"19.05","J_034","Isabella","Godier","Godier-Isabella","F","3 - 14 years to 15 years",4]
["2016-07-08","3 Day Race-Day 1",3,8,"20.54",612421,"Dylan","Machin","Machin-Dylan","M","1 - to 11 years",5]
["2016-07-09","3 Day Race-Day 2",2,1,"07.40",402509,"Elena","James","James-Elena","F","3 - 14 years to 15 years",5]
["2016-07-09","3 Day Race-Day 2",2,2,"07.49","J_030","Ethan","Staunton","Staunton-Ethan","M","1 - to 11 years",5]
["2016-07-09","3 Day Race-Day 2",2,3,"07.52",402848,"Josh","Marquez","Marquez-Josh","M","2 - 12 years to 13 years",5]
["2016-07-09","3 Day Race-Day 2",2,4,"08.38",197247,"Bella","Marquez","Marquez-Bella","F","1 - to 11 years",5]
["2016-07-09","3 Day Race-Day 2",2,5,"08.58","J_029","Molly","Staunton","Staunton-Molly","F","1 - to 11 years",4]
["2016-07-09","3 Day Race-Day 2",2,6,"15.29","J_034","Isabella","Godier","Godier-Isabella","F","3 - 14 years to 15 years",4]
["2016-07-09","3 Day Race-Day 2",2,7,"15.30","J_038","Mikayla","Godier","Godier-Mikayla","F","2 - 12 years to 13 years",5]
["2016-07-16","Running Works Cross Country Series  2",3,1,"11.46",612424,"Jake","Machin","Machin-Jake","M","2 - 12 years to 13 years",5]
["2016-07-16","Running Works Cross Country Series  2",3,2,"14.27",612421,"Dylan","Machin","Machin-Dylan","M","1 - to 11 years",5]
["2016-07-16","Running Works Cross Country Series  2",3,3,"15.45","J_022","Bella","Norris","Norris-Bella","F","1 - to 11 years",5]
["2016-07-30","Running Works  Cross Country Series Race 3",3,1,"12.23",573501,"Leo","Fairley","Fairley-Leo","M","2 - 12 years to 13 years",5]
["2016-07-30","Running Works  Cross Country Series Race 3",3,2,"12.59",402848,"Josh","Marquez","Marquez-Josh","M","2 - 12 years to 13 years",4]
["2016-07-30","Running Works  Cross Country Series Race 3",3,3,"12.59",97077,"Nathaniel","Horne","Horne-Nathaniel","M","3 - 14 years to 15 years",5]
["2016-07-30","Running Works  Cross Country Series Race 3",3,4,"13.13",402509,"Elena","James","James-Elena","F","3 - 14 years to 15 years",5]
["2016-07-30","Running Works  Cross Country Series Race 3",3,5,"13.29",612424,"Jake","Machin","Machin-Jake","M","2 - 12 years to 13 years",3]
["2016-07-30","Running Works  Cross Country Series Race 3",3,6,"13.55",560071,"Matthew","Ferguson","Ferguson-Matthew","M","2 - 12 years to 13 years",2]
["2016-07-30","Running Works  Cross Country Series Race 3",3,7,"17.58","J_041","Ethan","Sampson","Sampson-Ethan","M","1 - to 11 years",5]
["2016-07-30","Running Works  Cross Country Series Race 3",3,8,"18.26",612421,"Dylan","Machin","Machin-Dylan","M","1 - to 11 years",4]
["2016-07-30","Running Works  Cross Country Series Race 3",3,9,"19.15","J_022","Bella","Norris","Norris-Bella","F","1 - to 11 years",5]
["2016-07-30","Running Works  Cross Country Series Race 3",3,10,"19.20","J_040","Meghan","Knowles","Knowles-Meghan","F","1 - to 11 years",4]
["2016-07-30","Running Works  Cross Country Series Race 3",3,11,"22.43","J_039","Hayley","Knowles","Knowles-Hayley","F","1 - to 11 years",3]
["2016-08-20","Two Tunnels",3,1,"12.01",612424,"Jake","Machin","Machin-Jake","M","2 - 12 years to 13 years",5]
["2016-08-20","Two Tunnels",3,2,"13.21",612421,"Dylan","Machin","Machin-Dylan","M","1 - to 11 years",5]
["2016-08-27","North Ward Circuit",2,1,"07.51",402509,"Elena","James","James-Elena","F","3 - 14 years to 15 years",5]
["2016-08-27","North Ward Circuit",2,2,"08.23",612424,"Jake","Machin","Machin-Jake","M","2 - 12 years to 13 years",5]
["2016-08-27","North Ward Circuit",2,3,"08.55","J_042","Francie","Machin","Machin-Francie","F","N/A",5]
["2016-08-27","North Ward Circuit",2,4,"09.56",565757,"Gracy","Chadwick-Bray","Chadwick-Bray-Gracy","F","3 - 14 years to 15 years",4]
["2016-08-27","North Ward Circuit",2,5,"09.56",612421,"Dylan","Machin",{"$f":"H132&\"-\"&G132","v":"Machin-Dylan"},"M","1 - to 11 years",5]
["2016-09-24","Around the Hill ANQ Championships",4,1,"14.22",402848,"Josh","Marquez","Marquez-Josh","M","2 - 12 years to 13 years",5]
["2016-09-24","Around the Hill ANQ Championships",4,2,"15.31",197247,"Bella","Marquez","Marquez-Bella","F","1 - to 11 years",5]
["2016-09-24","Around the Hill ANQ Championships",4,3,"23.30",565757,"Gracy","Chadwick-Bray","Chadwick-Bray-Gracy","F","3 - 14 years to 15 years",5]
["2016-09-03","King Queen of hill",3.1,1,"15.55","Exclude (single run)","Tesfa","Nethery","Nethery-Tesfa","M","N/A",5]
["2016-09-03","King Queen of hill",3.1,2,"15.59","J_037","Yideg","Nethery","Nethery-Yideg","M","3 - 14 years to 15 years",5]
["2016-09-03","King Queen of hill",3.1,3,"17.25","J_030","Ethan","Staunton","Staunton-Ethan","M","1 - to 11 years",5]
["2016-09-03","King Queen of hill",3.1,4,"17.26",323017,"DECLAN","MARCHIONI","MARCHIONI-DECLAN","M","3 - 14 years to 15 years",4]
["2016-09-03","King Queen of hill",3.1,5,"17.59",511492,"Riley","Smithers","Smithers-Riley","M","3 - 14 years to 15 years",3]
["2016-09-03","King Queen of hill",3.1,6,"18.27",402509,"ELENA","JAMES","JAMES-ELENA","F","3 - 14 years to 15 years",5]
["2016-09-03","King Queen of hill",3.1,7,"18.31",532459,"LUKA","BARTULOVICH","BARTULOVICH-LUKA","M","2 - 12 years to 13 years",5]
["2016-09-03","King Queen of hill",3.1,8,"19.34",660311,"Shirley","Alcock","Alcock-Shirley","F","3 - 14 years to 15 years",4]
["2016-09-03","King Queen of hill",3.1,9,"20.47",612424,"JAKE","MACHIN","MACHIN-JAKE","M","2 - 12 years to 13 years",4]
["2016-09-03","King Queen of hill",3.1,10,"20.49","J_029","Molly","Staunton","Staunton-Molly","F","1 - to 11 years",5]
["2016-09-03","King Queen of hill",3.1,11,"22.41","Exclude (single run)","Sam","McGhie","McGhie-Sam","M","N/A",4]
["2016-09-03","King Queen of hill",3.1,12,"22.43","Exclude (single run)","Jett","McGhie","McGhie-Jett","M","N/A",3]
["2016-09-03","King Queen of hill",3.1,13,"23.19","J_011","Max","Schick","Schick-Max","M","1 - to 11 years",4]
["2016-09-03","King Queen of hill",3.1,14,"23.46",612421,"DYLAN","MACHIN","MACHIN-DYLAN","M","1 - to 11 years",3]
["2016-09-03","King Queen of hill",3.1,15,"28.31","Exclude (single run)","Reg","Alcock","Alcock-Reg","M","N/A",2]
["2016-09-03","King Queen of hill",3.1,16,"32.05","Exclude (single run)","Dylan","Talbot","Talbot-Dylan","M","N/A",1]
["2016-09-03","King Queen of hill",3.1,17,"34.23","Exclude (single run)","Michael","Barrier","Barrier-Michael","M","N/A",0]
["2016-10-01","East Water Tanks",2,1,"NTR",402848,"Josh","Marquez","Marquez-Josh","M","2 - 12 years to 13 years",5]
["2016-10-01","East Water Tanks",2,2,"NTR",402509,"Elena","James","James-Elena","F","3 - 14 years to 15 years",5]
["2016-10-01","East Water Tanks",2,3,"NTR",197247,"Bella","Marquez","Marquez-Bella","F","1 - to 11 years",5]
["2016-10-01","East Water Tanks",2,4,"NTR",612424,"Jake","Machin","Machin-Jake","M","2 - 12 years to 13 years",4]
["2016-10-01","East Water Tanks",2,5,"NTR",565757,"Gracy","Chadwick-Bray","Chadwick-Bray-Gracy","F","3 - 14 years to 15 years",4]
["2016-10-01","East Water Tanks",2,6,"NTR",612421,"Dylan","Machin","Machin-Dylan","M","1 - to 11 years",5]

{"sheet":"Points Table","index":2,"n_rows":49,"n_cols":25,"rows_kept":49,"cut":false,"hidden":true,"merged":[]}
["2016 Junior Points Tables"]
[null,"2016-03-12","2016-04-02","2016-04-16","2016-04-23","2016-04-30","2016-05-21","2016-05-28","2016-06-04","2016-06-11","2016-07-08","2016-07-09","2016-07-16","2016-07-30","2016-08-20","2016-08-27","2016-09-03","2016-09-24","2016-10-01","Grand Total",null,null,null,4]
["Name","Strand Run","Fairfield Waters Run","River Lower Loop","Town Common Loop","Alligator Creek Circuit","Townsville Ten Miler (PC)","West Water Tanks","Ross River Dam 10km Time Trial (PC)","Running Works Cross Country Series Race 1","3 Day Race-Day 1","3 Day Race-Day 2","Running Works Cross Country Series  2","Running Works  Cross Country Series Race 3","Two Tunnels","North Ward Circuit","King Queen of hill","Around the Hill ANQ Championships","East Water Tanks","Total","No. of Runs","Points per Run","Age Group","Gender","Eligible"]
["Alcock-Shirley",null,null,null,null,null,null,null,null,null,null,null,null,null,null,null,4,null,null,4,1,{"$f":"T4/U4","v":4},"3 - 14 years to 15 years","F","No"]
["Bartulovich-Luka",null,null,4,null,5,null,5,null,null,null,null,null,null,null,null,5,null,null,19,4,4.75,"2 - 12 years to 13 years","M","Yes"]
["Carey-Lachlan",null,null,4,3,3,null,null,null,null,null,null,null,null,null,null,null,null,null,10,3,3.3333333333333335,"3 - 14 years to 15 years","M","No"]
["Chadwick-Bray-Gracy",null,null,4,4,null,null,4,5,null,null,null,null,null,null,4,null,5,4,30,7,4.2857142857142856,"3 - 14 years to 15 years","F","Yes"]
["Cooper-Jardine",null,null,null,3,null,null,null,null,null,null,null,null,null,null,null,null,null,null,3,1,3,"2 - 12 years to 13 years","M","No"]
["Fairley-Leo",null,null,5,5,4,null,null,null,null,null,null,null,5,null,null,null,null,null,19,4,4.75,"2 - 12 years to 13 years","M","Yes"]
["Fairley-Ned",null,null,null,null,null,5,null,null,null,null,null,null,null,null,null,null,null,null,5,1,5,"1 - to 11 years","M","No"]
["Ferguson-Matthew",null,4,3,null,2,5,4,null,null,null,null,null,2,null,null,null,null,null,20,6,3.3333333333333335,"2 - 12 years to 13 years","M","Yes"]
["Godier-Isabella",null,null,null,null,null,null,null,null,null,4,4,null,null,null,null,null,null,null,8,2,4,"3 - 14 years to 15 years","F","No"]
["Godier-Mikayla",null,null,null,null,null,null,null,null,null,4,5,null,null,null,null,null,null,null,9,2,4.5,"2 - 12 years to 13 years","F","No"]
["Horne-Nathaniel",4,4,3,4,4,5,5,null,null,null,null,null,5,null,null,null,null,null,34,8,4.25,"3 - 14 years to 15 years","M","Yes"]
["James-Elena",5,5,5,5,5,5,5,null,5,5,5,null,5,null,5,5,null,5,70,14,5,"3 - 14 years to 15 years","F","Yes"]
["Jenkinson-Alli",null,null,null,null,5,null,null,null,null,null,null,null,null,null,null,null,null,null,5,1,5,"1 - to 11 years","F","No"]
["Kipping-Hannah",4,null,null,null,null,null,null,null,null,null,null,null,null,null,null,null,null,null,4,1,4,"3 - 14 years to 15 years","F","No"]
["Knowles-Hayley",null,null,null,null,null,null,null,null,null,null,null,null,3,null,null,null,null,null,3,1,3,"1 - to 11 years","F","No"]
["Knowles-Meghan",null,null,null,null,null,null,null,null,null,null,null,null,4,null,null,null,null,null,4,1,4,"1 - to 11 years","F","No"]
["Latouf-Connor",5,5,5,null,null,null,null,null,null,null,null,null,null,null,null,null,null,null,15,3,5,"3 - 14 years to 15 years","M","No"]
["Latouf-Reilly",5,5,5,null,null,null,null,null,null,null,null,null,null,null,null,null,null,null,15,3,5,"1 - to 11 years","M","No"]
["Leyton-Clifford",4,null,null,null,null,null,null,null,null,null,null,null,null,null,null,null,null,null,4,1,4,"2 - 12 years to 13 years","M","No"]
["Machin-Dylan",null,3,null,3,4,null,null,5,5,5,null,5,4,5,5,3,null,5,52,12,4.333333333333333,"1 - to 11 years","M","Yes"]
["Machin-Jake",null,3,null,4,1,null,null,5,5,5,null,5,3,5,5,4,null,4,49,12,4.083333333333333,"2 - 12 years to 13 years","M","Yes"]
["Maguire-Matthew",null,null,null,null,null,null,null,null,null,5,null,null,null,null,null,null,null,null,5,1,5,"4 - 16 years to 17 years","M","No"]
["Marano-Drew",null,null,null,null,5,null,null,null,null,null,null,null,null,null,null,null,null,null,5,1,5,"1 - to 11 years","M","No"]
["Marchioni-Declan",null,null,null,5,null,null,null,null,null,null,null,null,null,null,null,4,null,null,9,2,4.5,"3 - 14 years to 15 years","M","No"]
["Marquez-Bella",5,5,null,null,null,null,null,null,null,null,5,null,null,null,null,null,5,5,25,5,5,"1 - to 11 years","F","Yes"]
["Marquez-Josh",5,5,null,null,3,null,null,null,null,null,5,null,4,null,null,null,5,5,32,7,4.5714285714285712,"2 - 12 years to 13 years","M","Yes"]
["Nethery-Yideg",null,null,null,null,null,null,null,null,null,5,null,null,null,null,null,5,null,null,10,2,5,"3 - 14 years to 15 years","M","No"]
["Norris-Bella",null,null,5,null,null,null,null,null,5,null,null,5,5,null,null,null,null,null,20,4,5,"1 - to 11 years","F","Yes"]
["Norris-Hannah",null,null,null,null,null,null,null,null,4,null,null,null,null,null,null,null,null,null,4,1,4,"1 - to 11 years","F","No"]
["Nugent-Lauren",null,null,null,null,null,null,null,null,null,5,null,null,null,null,null,null,null,null,5,1,5,"2 - 12 years to 13 years","F","No"]
["Penny-Jorja",null,null,null,4,null,null,null,null,null,null,null,null,null,null,null,null,null,null,4,1,4,"1 - to 11 years","F","No"]
["Punshon-Declan",null,2,4,2,null,null,null,null,null,null,null,null,null,null,null,null,null,null,8,3,2.6666666666666665,"1 - to 11 years","M","No"]
["Punshon-Thaddaeus",null,5,null,null,null,null,null,null,null,null,null,null,null,null,null,null,null,null,5,1,5,"4 - 16 years to 17 years","M","No"]
["Raciti-Ella",null,null,null,3,null,null,null,null,null,null,null,null,null,null,null,null,null,null,3,1,3,"1 - to 11 years","F","No"]
["Sampson-Ethan",null,null,null,null,null,null,null,null,null,null,null,null,5,null,null,null,null,null,5,1,5,"1 - to 11 years","M","No"]
["Schick-Caitlin",null,4,null,null,null,null,null,null,null,null,null,null,null,null,null,null,null,null,4,1,4,"3 - 14 years to 15 years","F","No"]
["Schick-Emma",null,4,null,null,null,null,null,null,null,null,null,null,null,null,null,null,null,null,4,1,4,"1 - to 11 years","F","No"]
["Schick-Max",null,4,null,null,null,null,null,null,null,null,null,null,null,null,null,4,null,null,8,2,4,"1 - to 11 years","M","No"]
["Smithers-Riley",null,null,null,null,5,null,null,null,null,null,null,null,null,null,null,3,null,null,8,2,4,"3 - 14 years to 15 years","M","No"]
["Stafford-Taylor",4,4,4,4,null,null,null,null,null,null,null,null,null,null,null,null,null,null,16,4,4,"2 - 12 years to 13 years","F","Yes"]
["Stallan-Kye",null,null,null,4,null,null,null,null,null,null,null,null,null,null,null,null,null,null,4,1,4,"1 - to 11 years","M","No"]
["Stallan-Tyla",null,null,null,5,null,null,null,null,null,null,null,null,null,null,null,null,null,null,5,1,5,"4 - 16 years to 17 years","F","No"]
["Staunton-Ethan",null,null,null,5,null,null,null,null,null,null,5,null,null,null,null,5,null,null,15,3,5,"1 - to 11 years","M","No"]
["Staunton-Molly",null,null,null,5,null,null,null,null,null,null,4,null,null,null,null,5,null,null,14,3,4.666666666666667,"1 - to 11 years","F","No"]
["Stokes-Eloise",null,5,null,null,null,null,null,null,null,null,null,null,null,null,null,null,null,null,5,1,5,"4 - 16 years to 17 years","F","No"]
["Taylor-Brooke",5,5,5,5,5,5,null,null,null,null,null,null,null,null,null,null,null,null,30,6,5,"2 - 12 years to 13 years","F","Yes"]

{"sheet":"Summary","index":3,"n_rows":20,"n_cols":9,"rows_kept":20,"cut":false,"hidden":false,"merged":[]}
["Townsville Road Runners 2016 Junior Results"]
["Eligible","Yes","Need 4 runs to be eligible"]
["Min 4 runs required to be eligible for Age Group Categories"]
["Gender","Age Group","Name","Total Points","No. of Runs","Ave. Points Per Run","Age Group Place (based on Total Points)","Average Place per Run","Overall Best Junior Male and Female\n(Eligibility Criteria for Overall Best Male and Female was completing 60% of the 18 junior runs = 10 runs)"]
["F","1 - to 11 years","Marquez-Bella",25,5,5,"1st",{"$f":"SUMIFS('Run Results'!D:D,'Run Results'!I:I,$C5)/E5","v":4.8}]
[null,null,"Norris-Bella",20,4,5,"2nd",{"$f":"SUMIFS('Run Results'!D:D,'Run Results'!I:I,$C6)/E6","v":7.5}]
[null,"2 - 12 years to 13 years","Taylor-Brooke",30,6,5,"1st",{"$f":"SUMIFS('Run Results'!D:D,'Run Results'!I:I,$C7)/E7","v":6.833333333333333}]
[null,null,"Stafford-Taylor",16,4,4,"2nd",{"$f":"SUMIFS('Run Results'!D:D,'Run Results'!I:I,$C8)/E8","v":13.5}]
[null,"3 - 14 years to 15 years","James-Elena",70,14,5,"1st",{"$f":"SUMIFS('Run Results'!D:D,'Run Results'!I:I,$C9)/E9","v":2.7142857142857144},"Best Junior Female (Averaged 2.7th place over 14 runs)"]
[null,null,"Chadwick-Bray-Gracy",30,7,4.2857142857142856,"2nd",{"$f":"SUMIFS('Run Results'!D:D,'Run Results'!I:I,$C10)/E10","v":6.5714285714285712}]
["M","1 - to 11 years","Machin-Dylan",52,12,4.333333333333333,"1st",{"$f":"SUMIFS('Run Results'!D:D,'Run Results'!I:I,$C11)/E11","v":7.583333333333333}]
[null,"2 - 12 years to 13 years","Machin-Jake",49,12,4.083333333333333,"1st",{"$f":"SUMIFS('Run Results'!D:D,'Run Results'!I:I,$C12)/E12","v":4.833333333333333},"Best Junior Male (Averaged 4.8th place over 12 runs)#"]
[null,null,"Marquez-Josh",32,7,4.5714285714285712,"2nd",{"$f":"SUMIFS('Run Results'!D:D,'Run Results'!I:I,$C13)/E13","v":3.2857142857142856}]
[null,null,"Ferguson-Matthew",20,6,3.3333333333333335,"3rd",{"$f":"SUMIFS('Run Results'!D:D,'Run Results'!I:I,$C14)/E14","v":5.166666666666667}]
[null,null,"Bartulovich-Luka",19,4,4.75,"Equal 4th",{"$f":"SUMIFS('Run Results'!D:D,'Run Results'!I:I,$C15)/E15","v":4.5}]
[null,null,"Fairley-Leo",19,4,4.75,"Equal 4th",{"$f":"SUMIFS('Run Results'!D:D,'Run Results'!I:I,$C16)/E16","v":3.5}]
[null,"3 - 14 years to 15 years","Horne-Nathaniel",34,8,4.25,"1st",{"$f":"SUMIFS('Run Results'!D:D,'Run Results'!I:I,$C17)/E17","v":2.875}]
["Grand Total",null,null,416,93,58.357142857142861]
[]
["# Per the Junior Website page, \"to be eligible for the series, runners must complete at least 60% of the junior races\".  As there were 18 runs in the junior series, 60% is 10 or more runs."]